[Event "*** Titled Tuesday 3|2 Blitz"]
[Site "Chess.com"]
[Date "2015.03.03"]
[Round "6"]
[White "Rijeka1999"]
[Black "KyronGriffith"]
[Result "1-0"]
[WhiteElo "2249"]
[BlackElo "2159"]
[TimeControl "180+2"]
[EndTime "12:17:05 PST"]
[Termination "Rijeka1999 won by checkmate"]

1. e4 {[%clk 0:03:00]} 1... c5 {[%clk 0:02:58.8]} 2. Nf3 {[%clk 0:03:00.1]} 2...
d6 {[%clk 0:03:00]} 3. Bb5+ {[%clk 0:02:53.7]} 3... Nd7 {[%clk 0:03:00]} 4. O-O
{[%clk 0:02:48.2]} 4... Nf6 {[%clk 0:02:59.4]} 5. Nc3 {[%clk 0:02:48.4]} 5... a6
{[%clk 0:02:56.1]} 6. Bxd7+ {[%clk 0:02:47.2]} 6... Bxd7 {[%clk 0:02:54.1]} 7.
d4 {[%clk 0:02:48.2]} 7... cxd4 {[%clk 0:02:52.7]} 8. Qxd4 {[%clk 0:02:48]} 8...
e5 {[%clk 0:02:52.9]} 9. Qd3 {[%clk 0:02:43.6]} 9... h6 {[%clk 0:02:52.7]} 10.
Be3 {[%clk 0:02:38.3]} 10... Be7 {[%clk 0:02:52.8]} 11. Rfd1 {[%clk 0:02:36.1]}
11... Qc7 {[%clk 0:02:52.2]} 12. a4 {[%clk 0:02:18.6]} 12... b6 {[%clk
0:02:44.6]} 13. Nd2 {[%clk 0:02:17.5]} 13... Be6 {[%clk 0:02:42.8]} 14. f4
{[%clk 0:01:47.4]} 14... exf4 {[%clk 0:02:39.7]} 15. Bxf4 {[%clk 0:01:47.3]}
15... O-O {[%clk 0:02:41.1]} 16. Nf3 {[%clk 0:01:48]} 16... Rfd8 {[%clk
0:02:35]} 17. Nd5 {[%clk 0:01:44.7]} 17... Nxd5 {[%clk 0:02:17.1]} 18. exd5
{[%clk 0:01:45.1]} 18... Bg4 {[%clk 0:02:18]} 19. Re1 {[%clk 0:01:40]} 19... Bf6
{[%clk 0:02:17.2]} 20. c3 {[%clk 0:01:40.2]} 20... Bxf3 {[%clk 0:01:28.8]} 21.
Qxf3 {[%clk 0:01:40.4]} 21... Bg5 {[%clk 0:01:19.3]} 22. Bxg5 {[%clk 0:01:35.8]}
22... hxg5 {[%clk 0:01:21.2]} 23. Qf5 {[%clk 0:01:36.3]} 23... Re8 {[%clk
0:01:00.8]} 24. Qxg5 {[%clk 0:01:35.6]} 24... Qc5+ {[%clk 0:01:00.8]} 25. Kh1
{[%clk 0:01:33.3]} 25... Rxe1+ {[%clk 0:00:58.4]} 26. Rxe1 {[%clk 0:01:32]}
26... Qf2 {[%clk 0:00:59.5]} 27. Qc1 {[%clk 0:01:27.9]} 27... b5 {[%clk
0:00:58.4]} 28. axb5 {[%clk 0:01:26.5]} 28... axb5 {[%clk 0:01:00.3]} 29. Rf1
{[%clk 0:01:27.1]} 29... Qc5 {[%clk 0:00:54.2]} 30. Qd1 {[%clk 0:01:27.8]} 30...
b4 {[%clk 0:00:34.1]} 31. Qf3 {[%clk 0:01:13.7]} 31... Rf8 {[%clk 0:00:24.5]}
32. h3 {[%clk 0:01:08.8]} 32... bxc3 {[%clk 0:00:25]} 33. bxc3 {[%clk 0:01:10]}
33... Qc7 {[%clk 0:00:24.2]} 34. Rc1 {[%clk 0:01:04.9]} 34... Rc8 {[%clk
0:00:24.6]} 35. c4 {[%clk 0:01:06]} 35... Qc5 {[%clk 0:00:25.3]} 36. Qg4 {[%clk
0:01:04.8]} 36... Re8 {[%clk 0:00:25.1]} 37. Rf1 {[%clk 0:01:03.3]} 37... Qe3
{[%clk 0:00:22.5]} 38. Qf4 {[%clk 0:00:50]} 38... Qxf4 {[%clk 0:00:20.7]} 39.
Rxf4 {[%clk 0:00:50.7]} 39... Re1+ {[%clk 0:00:22.4]} 40. Kh2 {[%clk 0:00:51.6]}
40... Rc1 {[%clk 0:00:24.3]} 41. Re4 {[%clk 0:00:52.4]} 41... Kf8 {[%clk
0:00:24.5]} 42. Kg3 {[%clk 0:00:53.3]} 42... f5 {[%clk 0:00:22.9]} 43. Re6
{[%clk 0:00:53.3]} 43... Rxc4 {[%clk 0:00:23.9]} 44. Rxd6 {[%clk 0:00:54.6]}
44... Ke7 {[%clk 0:00:22.5]} 45. Ra6 {[%clk 0:00:46.4]} 45... Rd4 {[%clk
0:00:22.1]} 46. Ra7+ {[%clk 0:00:38.5]} 46... Kf6 {[%clk 0:00:22.5]} 47. Ra6+
{[%clk 0:00:39.6]} 47... Kg5 {[%clk 0:00:17.4]} 48. d6 {[%clk 0:00:26.8]} 48...
Rd3+ {[%clk 0:00:18.7]} 49. Kh2 {[%clk 0:00:26.6]} 49... Kf4 {[%clk 0:00:16]}
50. Ra7 {[%clk 0:00:23.2]} 50... g5 {[%clk 0:00:13]} 51. d7 {[%clk 0:00:24.4]}
51... g4 {[%clk 0:00:13.8]} 52. hxg4 {[%clk 0:00:19.7]} 52... Kxg4 {[%clk
0:00:12.8]} 53. Rc7 {[%clk 0:00:16.9]} 53... Rd6 {[%clk 0:00:11.1]} 54. Kg1
{[%clk 0:00:17.8]} 54... Rd2 {[%clk 0:00:09.4]} 55. Kf1 {[%clk 0:00:18.6]} 55...
f4 {[%clk 0:00:10.5]} 56. Ke1 {[%clk 0:00:18.3]} 56... Rd6 {[%clk 0:00:11.4]}
57. Ke2 {[%clk 0:00:19.3]} 57... Kg3 {[%clk 0:00:12.6]} 58. Rc6 {[%clk
0:00:18.3]} 58... Rxd7 {[%clk 0:00:10]} 59. Rg6+ {[%clk 0:00:19.2]} 59... Kh2
{[%clk 0:00:08.8]} 60. Kf3 {[%clk 0:00:20.5]} 60... Rf7 {[%clk 0:00:08.7]} 61.
Rh6+ {[%clk 0:00:18.1]} 61... Kg1 {[%clk 0:00:09.7]} 62. Rh4 {[%clk 0:00:19.1]}
62... Kf1 {[%clk 0:00:09.7]} 63. Rh1# {[%clk 0:00:19.7]} 1-0

[Event "*** Titled Tuesday 3|2 Blitz"]
[Site "Chess.com"]
[Date "2015.03.03"]
[Round "7"]
[White "Colombiano07"]
[Black "kinetix"]
[Result "0-1"]
[WhiteElo "1935"]
[BlackElo "1569"]
[TimeControl "180+2"]
[EndTime "12:25:23 PST"]
[Termination "kinetix won by resignation"]

1. e4 {[%clk 0:02:18.7]} 1... Nf6 {[%clk 0:02:37.7]} 2. Nc3 {[%clk 0:02:16.5]}
2... d6 {[%clk 0:02:35.7]} 3. d4 {[%clk 0:02:17]} 3... c6 {[%clk 0:02:34.1]} 4.
a4 {[%clk 0:02:10.7]} 4... g6 {[%clk 0:02:33.8]} 5. Bc4 {[%clk 0:02:08.8]} 5...
Bg7 {[%clk 0:02:33.3]} 6. Qe2 {[%clk 0:02:09.5]} 6... O-O {[%clk 0:02:23.2]} 7.
e5 {[%clk 0:01:54.7]} 7... dxe5 {[%clk 0:02:20.3]} 8. dxe5 {[%clk 0:01:56.6]}
8... Nd5 {[%clk 0:02:15.7]} 9. Bd2 {[%clk 0:01:55.8]} 9... a5 {[%clk 0:02:10.2]}
10. Nf3 {[%clk 0:01:44.8]} 10... Na6 {[%clk 0:02:09.9]} 11. O-O {[%clk
0:01:06.4]} 11... Nab4 {[%clk 0:02:05.1]} 12. Bb3 {[%clk 0:01:00.7]} 12... Bg4
{[%clk 0:02:03.6]} 13. Rfe1 {[%clk 0:00:54]} 13... Qc7 {[%clk 0:01:53.2]} 14.
Nxd5 {[%clk 0:00:40.7]} 14... Nxd5 {[%clk 0:01:51.4]} 15. Bxd5 {[%clk 0:00:36]}
15... cxd5 {[%clk 0:01:51.7]} 16. Bc3 {[%clk 0:00:34.6]} 16... Rfd8 {[%clk
0:01:36.3]} 17. h3 {[%clk 0:00:35.6]} 17... Bxf3 {[%clk 0:01:35.8]} 18. Qxf3
{[%clk 0:00:37.5]} 18... d4 {[%clk 0:01:34.5]} 19. e6 {[%clk 0:00:36.3]} 19...
dxc3 {[%clk 0:01:31.6]} 20. Qxf7+ {[%clk 0:00:37]} 20... Kh8 {[%clk 0:01:32.8]}
21. bxc3 {[%clk 0:00:37.2]} 21... Rf8 {[%clk 0:01:28.9]} 0-1

[Event "*** Titled Tuesday 3|2 Blitz"]
[Site "Chess.com"]
[Date "2015.03.03"]
[Round "7"]
[White "Spas_Kozhuharov"]
[Black "Tomsel"]
[Result "1-0"]
[WhiteElo "2415"]
[BlackElo "2288"]
[TimeControl "180+2"]
[EndTime "12:25:27 PST"]
[Termination "Spas_Kozhuharov won by resignation"]

1. d4 {[%clk 0:03:00]} 1... Nf6 {[%clk 0:02:57.9]} 2. c4 {[%clk 0:02:59.5]} 2...
e6 {[%clk 0:02:58.8]} 3. Nc3 {[%clk 0:03:00.1]} 3... Bb4 {[%clk 0:02:58]} 4. Qc2
{[%clk 0:03:01.5]} 4... c5 {[%clk 0:02:46.9]} 5. dxc5 {[%clk 0:03:01.7]} 5...
Na6 {[%clk 0:02:43.1]} 6. a3 {[%clk 0:03:01.8]} 6... Bxc3+ {[%clk 0:02:39.9]} 7.
Qxc3 {[%clk 0:03:03.7]} 7... Nxc5 {[%clk 0:02:40.1]} 8. b4 {[%clk 0:03:05.1]}
8... Nce4 {[%clk 0:02:41.1]} 9. Qb2 {[%clk 0:03:05.9]} 9... d5 {[%clk
0:02:40.1]} 10. c5 {[%clk 0:03:07.1]} 10... b6 {[%clk 0:02:39.6]} 11. f3 {[%clk
0:03:07.3]} 11... bxc5 {[%clk 0:02:22.8]} 12. fxe4 {[%clk 0:03:07.7]} 12... Nxe4
{[%clk 0:02:24]} 13. Qxg7 {[%clk 0:03:07.2]} 13... Kd7 {[%clk 0:01:51.8]} 14.
Qxf7+ {[%clk 0:03:04.4]} 14... Kc6 {[%clk 0:01:52.8]} 15. Nf3 {[%clk 0:02:58]}
15... Rf8 {[%clk 0:01:46.1]} 16. Qxh7 {[%clk 0:02:56]} 16... Qf6 {[%clk
0:01:43]} 17. Rb1 {[%clk 0:02:48.2]} 17... Ba6 {[%clk 0:00:56]} 18. Bb2 {[%clk
0:02:31.8]} 18... Qf4 {[%clk 0:00:56.4]} 19. bxc5 {[%clk 0:02:18.4]} 19... Rab8
{[%clk 0:00:41.6]} 20. Nd4+ {[%clk 0:02:04.3]} 20... Kxc5 {[%clk 0:00:40.7]} 21.
Qe7+ {[%clk 0:02:03.8]} 21... Nd6 {[%clk 0:00:04.2]} 22. Nxe6+ {[%clk
0:02:03.1]} 1-0

[Event "*** Titled Tuesday 3|2 Blitz"]
[Site "Chess.com"]
[Date "2015.03.03"]
[Round "7"]
[White "Chesseducation4u"]
[Black "ChessTrener"]
[Result "0-1"]
[WhiteElo "2328"]
[BlackElo "2452"]
[TimeControl "180+2"]
[EndTime "12:26:21 PST"]
[Termination "ChessTrener won by resignation"]

1. Nf3 {[%clk 0:03:00]} 1... Nf6 {[%clk 0:02:57]} 2. g3 {[%clk 0:03:00.9]} 2...
b5 {[%clk 0:02:57.5]} 3. Bg2 {[%clk 0:03:00]} 3... Bb7 {[%clk 0:02:59]} 4. O-O
{[%clk 0:03:01.8]} 4... e6 {[%clk 0:03:00]} 5. d3 {[%clk 0:03:03.7]} 5... c5
{[%clk 0:03:00.9]} 6. a4 {[%clk 0:03:00]} 6... b4 {[%clk 0:03:01.6]} 7. e3
{[%clk 0:02:58.3]} 7... d6 {[%clk 0:03:01.9]} 8. b3 {[%clk 0:02:59.4]} 8... Nbd7
{[%clk 0:03:02.5]} 9. Bb2 {[%clk 0:03:00.6]} 9... Be7 {[%clk 0:03:04.1]} 10.
Nbd2 {[%clk 0:03:01.4]} 10... O-O {[%clk 0:03:05.6]} 11. Qe2 {[%clk 0:02:59]}
11... Rc8 {[%clk 0:03:05.8]} 12. Ne1 {[%clk 0:02:49.1]} 12... Qc7 {[%clk
0:03:04.9]} 13. f4 {[%clk 0:02:48.2]} 13... Rfe8 {[%clk 0:03:04]} 14. g4 {[%clk
0:02:47.1]} 14... Nd5 {[%clk 0:02:58.6]} 15. g5 {[%clk 0:02:45.8]} 15... Bf8
{[%clk 0:02:58.8]} 16. e4 {[%clk 0:02:31.2]} 16... Nc3 {[%clk 0:02:44.8]} 17.
Qg4 {[%clk 0:02:08.5]} 17... d5 {[%clk 0:02:40.4]} 18. e5 {[%clk 0:01:56.8]}
18... a5 {[%clk 0:02:34.2]} 19. h4 {[%clk 0:01:37.4]} 19... Nb6 {[%clk
0:02:24.2]} 20. h5 {[%clk 0:01:33]} 20... g6 {[%clk 0:02:25.2]} 21. Ndf3 {[%clk
0:01:19]} 21... c4 {[%clk 0:02:22.8]} 22. Bxc3 {[%clk 0:01:15.3]} 22... bxc3
{[%clk 0:02:23.4]} 23. bxc4 {[%clk 0:01:13.1]} 23... dxc4 {[%clk 0:02:24.4]} 24.
d4 {[%clk 0:01:14.3]} 24... Nd5 {[%clk 0:02:23.6]} 25. Kf2 {[%clk 0:01:10.3]}
25... Nb4 {[%clk 0:02:11.4]} 26. Rh1 {[%clk 0:01:06.7]} 26... Bg7 {[%clk
0:02:11.1]} 27. Qh4 {[%clk 0:00:54.3]} 27... Be4 {[%clk 0:02:09.5]} 28. Rc1
{[%clk 0:00:51.4]} 28... Red8 {[%clk 0:02:01.6]} 29. Nh2 {[%clk 0:00:26.8]}
29... Rxd4 {[%clk 0:01:54.3]} 30. Bxe4 {[%clk 0:00:15.9]} 30... Rxe4 {[%clk
0:01:54.4]} 31. Ng4 {[%clk 0:00:17.2]} 31... Rxf4+ {[%clk 0:01:54]} 0-1

[Event "*** Titled Tuesday 3|2 Blitz"]
[Site "Chess.com"]
[Date "2015.03.03"]
[Round "7"]
[White "Mazetovic"]
[Black "MinhGTrAn"]
[Result "1-0"]
[WhiteElo "2478"]
[BlackElo "2418"]
[TimeControl "180+2"]
[EndTime "12:27:04 PST"]
[Termination "Mazetovic won by resignation"]

1. e4 {[%clk 0:03:00]} 1... e6 {[%clk 0:02:58.1]} 2. d3 {[%clk 0:02:56]} 2... d5
{[%clk 0:03:00]} 3. Nd2 {[%clk 0:02:56.8]} 3... Nf6 {[%clk 0:03:01.5]} 4. Ngf3
{[%clk 0:02:53.2]} 4... Nc6 {[%clk 0:03:01.2]} 5. Qe2 {[%clk 0:02:40.4]} 5... b6
{[%clk 0:03:00]} 6. e5 {[%clk 0:02:39.5]} 6... Nd7 {[%clk 0:03:00.8]} 7. g3
{[%clk 0:02:40.4]} 7... Bb7 {[%clk 0:03:00.6]} 8. Bg2 {[%clk 0:02:39.6]} 8...
Qe7 {[%clk 0:03:02]} 9. O-O {[%clk 0:02:40.1]} 9... O-O-O {[%clk 0:03:01.1]} 10.
c3 {[%clk 0:02:38.7]} 10... Ba6 {[%clk 0:03:00.7]} 11. Nb3 {[%clk 0:02:21.3]}
11... f6 {[%clk 0:03:00.1]} 12. exf6 {[%clk 0:02:19.8]} 12... gxf6 {[%clk
0:03:02]} 13. Nbd4 {[%clk 0:02:20.1]} 13... Nxd4 {[%clk 0:02:59.1]} 14. Nxd4
{[%clk 0:02:20.7]} 14... Re8 {[%clk 0:02:51.6]} 15. b4 {[%clk 0:02:07.5]} 15...
Bb7 {[%clk 0:02:50.1]} 16. a4 {[%clk 0:02:04.3]} 16... a6 {[%clk 0:02:40.1]} 17.
a5 {[%clk 0:01:54.4]} 17... b5 {[%clk 0:02:38.7]} 18. c4 {[%clk 0:01:45.4]}
18... Qxb4 {[%clk 0:02:30.6]} 19. Ba3 {[%clk 0:01:44.9]} 19... Qc3 {[%clk
0:02:27.9]} 20. Bb2 {[%clk 0:01:43.7]} 20... Qb4 {[%clk 0:02:26.4]} 21. cxb5
{[%clk 0:01:44.7]} 21... axb5 {[%clk 0:02:14.6]} 22. a6 {[%clk 0:01:42.9]} 22...
Ba8 {[%clk 0:02:15.9]} 23. Rfc1 {[%clk 0:01:32.7]} 23... e5 {[%clk 0:01:40.4]}
24. Bc3 {[%clk 0:01:21.2]} 24... Qc5 {[%clk 0:01:02.4]} 25. Ba5 {[%clk
0:01:08.5]} 25... Qxd4 {[%clk 0:01:03.2]} 26. Rxc7+ {[%clk 0:01:08.8]} 26... Kb8
{[%clk 0:01:04.8]} 27. a7+ {[%clk 0:01:07.9]} 27... Qxa7 {[%clk 0:01:02.6]} 28.
Rxa7 {[%clk 0:01:08.6]} 28... Kxa7 {[%clk 0:01:04.5]} 29. d4 {[%clk 0:01:01]}
29... Bc6 {[%clk 0:00:49.1]} 30. Bxd5 {[%clk 0:01:00.9]} 30... Bxd5 {[%clk
0:00:17.7]} 31. Qxb5 {[%clk 0:00:59.2]} 1-0

[Event "*** Titled Tuesday 3|2 Blitz"]
[Site "Chess.com"]
[Date "2015.03.03"]
[Round "7"]
[White "Novak_Pezelj"]
[Black "AUSSIE_PINOY"]
[Result "1-0"]
[WhiteElo "2398"]
[BlackElo "2218"]
[TimeControl "180+2"]
[EndTime "12:27:04 PST"]
[Termination "Novak_Pezelj won by checkmate"]

1. e4 {[%clk 0:03:00]} 1... c5 {[%clk 0:02:58]} 2. Nc3 {[%clk 0:03:00.2]} 2...
a6 {[%clk 0:02:59]} 3. a4 {[%clk 0:03:00.8]} 3... b6 {[%clk 0:02:58.7]} 4. Bc4
{[%clk 0:03:01.8]} 4... e6 {[%clk 0:02:57.6]} 5. d3 {[%clk 0:03:01.1]} 5... Bb7
{[%clk 0:02:58.8]} 6. Nge2 {[%clk 0:03:01.5]} 6... Qc7 {[%clk 0:03:00]} 7. Bf4
{[%clk 0:03:01]} 7... Bd6 {[%clk 0:02:57.9]} 8. Bg3 {[%clk 0:02:52.6]} 8... h5
{[%clk 0:02:58]} 9. Qd2 {[%clk 0:02:47.8]} 9... Nf6 {[%clk 0:02:55.6]} 10. Qg5
{[%clk 0:02:35.7]} 10... Nc6 {[%clk 0:02:19.2]} 11. Qxg7 {[%clk 0:02:27.2]}
11... Ke7 {[%clk 0:02:14.7]} 12. Bh4 {[%clk 0:02:19.2]} 12... Be5 {[%clk
0:02:14.9]} 13. f4 {[%clk 0:02:19.6]} 13... Rag8 {[%clk 0:02:09.1]} 14. fxe5
{[%clk 0:02:16.7]} 14... Rxg7 {[%clk 0:02:02.7]} 15. exf6+ {[%clk 0:02:17.8]}
15... Kf8 {[%clk 0:02:01.8]} 16. fxg7+ {[%clk 0:02:19]} 16... Kxg7 {[%clk
0:02:03.1]} 17. O-O {[%clk 0:02:19]} 17... Rh6 {[%clk 0:01:57.1]} 18. Bg3 {[%clk
0:01:48.1]} 18... d6 {[%clk 0:01:56.8]} 19. h4 {[%clk 0:01:33.5]} 19... Ne5
{[%clk 0:01:48.9]} 20. Bxe5+ {[%clk 0:01:30]} 20... dxe5 {[%clk 0:01:50.1]} 21.
Rf3 {[%clk 0:01:30]} 21... Qd6 {[%clk 0:01:49]} 22. Raf1 {[%clk 0:01:29.5]}
22... f6 {[%clk 0:01:50.2]} 23. Nd1 {[%clk 0:01:21.6]} 23... f5 {[%clk
0:01:38.5]} 24. Rg3+ {[%clk 0:01:11]} 24... Rg6 {[%clk 0:01:39.3]} 25. exf5
{[%clk 0:01:09.7]} 25... exf5 {[%clk 0:01:34.4]} 26. Rxf5 {[%clk 0:01:06]} 26...
e4 {[%clk 0:01:34.9]} 27. Rf7+ {[%clk 0:00:38.9]} 27... Kh6 {[%clk 0:01:34.1]}
28. Rxg6+ {[%clk 0:00:36]} 28... Qxg6 {[%clk 0:01:29.8]} 29. Nf4 {[%clk
0:00:34.8]} 29... Qd6 {[%clk 0:01:18.4]} 30. Ne3 {[%clk 0:00:25.4]} 30... Bc8
{[%clk 0:01:16.4]} 31. Ned5 {[%clk 0:00:24.3]} 31... Qe5 {[%clk 0:01:04.3]} 32.
Ne7 {[%clk 0:00:24.7]} 32... Qd4+ {[%clk 0:00:56.3]} 33. Kh2 {[%clk 0:00:25.2]}
33... Bg4 {[%clk 0:00:55]} 34. Ng8# {[%clk 0:00:25.4]} 1-0

[Event "*** Titled Tuesday 3|2 Blitz"]
[Site "Chess.com"]
[Date "2015.03.03"]
[Round "7"]
[White "zmaj23"]
[Black "DanielNaroditsky"]
[Result "1-0"]
[WhiteElo "2355"]
[BlackElo "2565"]
[TimeControl "180+2"]
[EndTime "12:27:05 PST"]
[Termination "zmaj23 won by resignation"]

1. e4 {[%clk 0:03:00]} 1... e5 {[%clk 0:02:58.6]} 2. Nc3 {[%clk 0:03:01.3]} 2...
Nf6 {[%clk 0:02:57.8]} 3. Bc4 {[%clk 0:03:02]} 3... Bb4 {[%clk 0:02:57.5]} 4.
Nge2 {[%clk 0:02:59]} 4... c6 {[%clk 0:02:57.4]} 5. O-O {[%clk 0:02:57.4]} 5...
d5 {[%clk 0:02:57.7]} 6. exd5 {[%clk 0:02:56.8]} 6... cxd5 {[%clk 0:02:59.1]} 7.
Bb5+ {[%clk 0:02:58.4]} 7... Nc6 {[%clk 0:02:59.5]} 8. d4 {[%clk 0:02:56]} 8...
e4 {[%clk 0:02:59.9]} 9. Bg5 {[%clk 0:02:53.9]} 9... Be6 {[%clk 0:02:58.6]} 10.
f3 {[%clk 0:02:52.3]} 10... exf3 {[%clk 0:02:59.8]} 11. Rxf3 {[%clk 0:02:52.1]}
11... Be7 {[%clk 0:03:01.4]} 12. Nf4 {[%clk 0:02:49.4]} 12... O-O {[%clk
0:03:01.9]} 13. Nxe6 {[%clk 0:02:42.3]} 13... fxe6 {[%clk 0:03:01.1]} 14. Rh3
{[%clk 0:02:34.9]} 14... Rc8 {[%clk 0:03:00.5]} 15. Bxc6 {[%clk 0:02:29.1]}
15... bxc6 {[%clk 0:03:01.4]} 16. Qd3 {[%clk 0:02:29.5]} 16... h6 {[%clk
0:03:02.2]} 17. Bxh6 {[%clk 0:02:24.4]} 17... Qe8 {[%clk 0:03:03.5]} 18. Bg5
{[%clk 0:02:22.3]} 18... Kf7 {[%clk 0:02:48.3]} 19. Rf1 {[%clk 0:02:20.3]} 19...
Rh8 {[%clk 0:02:48.5]} 20. Rhf3 {[%clk 0:02:14.7]} 20... Qd8 {[%clk 0:02:49.7]}
21. Rg3 {[%clk 0:02:11.6]} 21... Rb8 {[%clk 0:02:32.2]} 22. Bxf6 {[%clk
0:02:03.2]} 22... Bxf6 {[%clk 0:02:33]} 23. Qg6+ {[%clk 0:02:03.2]} 23... Ke7
{[%clk 0:02:33.1]} 24. Rg4 {[%clk 0:01:46.7]} 24... Rxb2 {[%clk 0:02:25.9]} 25.
Na4 {[%clk 0:01:47.6]} 25... Rh6 {[%clk 0:02:16.9]} 26. Qd3 {[%clk 0:01:44.7]}
26... Rb4 {[%clk 0:02:12.6]} 27. Qg3 {[%clk 0:01:19]} 27... Rh7 {[%clk
0:01:50.4]} 28. Nc5 {[%clk 0:01:19.2]} 28... Qd6 {[%clk 0:01:35.9]} 29. c3
{[%clk 0:01:16.8]} 29... Qxg3 {[%clk 0:01:32.3]} 30. Rxg3 {[%clk 0:01:18.7]}
30... Rc4 {[%clk 0:01:33.6]} 31. Re3 {[%clk 0:01:16.7]} 31... e5 {[%clk
0:01:34.3]} 32. Rb1 {[%clk 0:01:16.9]} 32... Rh5 {[%clk 0:00:57.9]} 33. Rb7+
{[%clk 0:01:14]} 33... Kd8 {[%clk 0:00:57.2]} 34. Ne6+ {[%clk 0:01:07.4]} 34...
Kc8 {[%clk 0:00:56.5]} 35. Rc7+ {[%clk 0:01:05.4]} 35... Kb8 {[%clk 0:00:57.9]}
36. Re2 {[%clk 0:01:01.2]} 36... Rh8 {[%clk 0:00:54.4]} 37. Rb2+ {[%clk
0:00:59.8]} 37... Ka8 {[%clk 0:00:55.9]} 38. Rcb7 {[%clk 0:00:48.1]} 1-0

[Event "*** Titled Tuesday 3|2 Blitz"]
[Site "Chess.com"]
[Date "2015.03.03"]
[Round "7"]
[White "manitodeplomo"]
[Black "GMHess"]
[Result "0-1"]
[WhiteElo "2288"]
[BlackElo "2454"]
[TimeControl "180+2"]
[EndTime "12:27:14 PST"]
[Termination "GMHess won on time"]

1. d4 {[%clk 0:03:00]} 1... g6 {[%clk 0:02:57]} 2. c4 {[%clk 0:02:59.7]} 2...
Bg7 {[%clk 0:02:58.1]} 3. Nc3 {[%clk 0:02:59.6]} 3... c5 {[%clk 0:02:59]} 4. d5
{[%clk 0:02:58.8]} 4... Bxc3+ {[%clk 0:02:59.8]} 5. bxc3 {[%clk 0:03:00.7]} 5...
f5 {[%clk 0:03:01.2]} 6. e4 {[%clk 0:02:42.7]} 6... fxe4 {[%clk 0:02:59.4]} 7.
Qa4 {[%clk 0:02:40.2]} 7... Nf6 {[%clk 0:02:53.3]} 8. f3 {[%clk 0:02:28.9]} 8...
e6 {[%clk 0:02:44.9]} 9. fxe4 {[%clk 0:02:27.1]} 9... Nxe4 {[%clk 0:02:43.8]}
10. Nf3 {[%clk 0:02:27]} 10... O-O {[%clk 0:02:29.6]} 11. Qc2 {[%clk 0:01:30.3]}
11... Qf6 {[%clk 0:01:20.1]} 12. Bh6 {[%clk 0:01:18.1]} 12... Re8 {[%clk
0:00:56]} 13. Qxe4 {[%clk 0:01:17.8]} 13... Qxc3+ {[%clk 0:00:55.3]} 14. Kf2
{[%clk 0:01:18.7]} 14... Qxa1 {[%clk 0:00:53.9]} 15. Bd3 {[%clk 0:01:19.4]}
15... Qb2+ {[%clk 0:00:49.2]} 16. Kg3 {[%clk 0:01:14.3]} 16... d6 {[%clk
0:00:38.7]} 17. Rf1 {[%clk 0:01:07.6]} 17... Nd7 {[%clk 0:00:28.9]} 18. Qf4
{[%clk 0:00:26.3]} 18... e5 {[%clk 0:00:19.1]} 19. Qg5 {[%clk 0:00:22.7]} 19...
e4 {[%clk 0:00:18.5]} 20. Re1 {[%clk 0:00:18.8]} 20... Nf6 {[%clk 0:00:16]} 21.
Bxe4 {[%clk 0:00:09.9]} 21... Rxe4 {[%clk 0:00:12.5]} 0-1

[Event "*** Titled Tuesday 3|2 Blitz"]
[Site "Chess.com"]
[Date "2015.03.03"]
[Round "7"]
[White "Mugzyyy"]
[Black "petrpalachev"]
[Result "1-0"]
[WhiteElo "2404"]
[BlackElo "2438"]
[TimeControl "180+2"]
[EndTime "12:27:21 PST"]
[Termination "Mugzyyy won by resignation"]

1. d4 {[%clk 0:03:00]} 1... Nf6 {[%clk 0:02:58.8]} 2. c4 {[%clk 0:03:01.2]} 2...
e6 {[%clk 0:03:00.1]} 3. Nc3 {[%clk 0:03:01.7]} 3... Bb4 {[%clk 0:03:00.6]} 4.
Nf3 {[%clk 0:03:03.2]} 4... d5 {[%clk 0:02:56.8]} 5. cxd5 {[%clk 0:03:03.3]}
5... exd5 {[%clk 0:02:58.7]} 6. Bg5 {[%clk 0:03:04.9]} 6... h6 {[%clk
0:02:59.2]} 7. Bh4 {[%clk 0:03:06.2]} 7... g5 {[%clk 0:03:00.4]} 8. Bg3 {[%clk
0:03:07.2]} 8... Ne4 {[%clk 0:03:02.1]} 9. Nd2 {[%clk 0:03:06]} 9... Nxg3 {[%clk
0:03:01.9]} 10. hxg3 {[%clk 0:03:07]} 10... c6 {[%clk 0:03:01.4]} 11. Qc2 {[%clk
0:03:06]} 11... Qe7 {[%clk 0:02:59.2]} 12. e3 {[%clk 0:03:05.7]} 12... Bg4
{[%clk 0:02:54.3]} 13. Be2 {[%clk 0:02:46.2]} 13... Bxe2 {[%clk 0:02:44]} 14.
Nxe2 {[%clk 0:02:47.3]} 14... Nd7 {[%clk 0:02:42.6]} 15. O-O-O {[%clk
0:02:47.7]} 15... Bxd2+ {[%clk 0:02:32.8]} 16. Rxd2 {[%clk 0:02:48.3]} 16... Nf6
{[%clk 0:02:32.3]} 17. Nc3 {[%clk 0:02:45.5]} 17... O-O-O {[%clk 0:02:26]} 18.
Kb1 {[%clk 0:02:46]} 18... Kb8 {[%clk 0:02:16.6]} 19. Rd3 {[%clk 0:02:39.7]}
19... Ne4 {[%clk 0:02:10.2]} 20. g4 {[%clk 0:02:38.7]} 20... Nxc3+ {[%clk
0:01:39.9]} 21. Rxc3 {[%clk 0:02:39.7]} 21... Rd6 {[%clk 0:01:40.2]} 22. a3
{[%clk 0:02:16.1]} 22... Re8 {[%clk 0:01:22.7]} 23. f3 {[%clk 0:01:57]} 23...
Re6 {[%clk 0:01:15.9]} 24. Re1 {[%clk 0:01:58]} 24... Qd6 {[%clk 0:01:11.4]} 25.
Ka2 {[%clk 0:01:54.3]} 25... Qh2 {[%clk 0:00:45.6]} 26. Re2 {[%clk 0:01:48.8]}
26... R8e7 {[%clk 0:00:29.1]} 27. Rb3 {[%clk 0:01:48.8]} 27... Qg1 {[%clk
0:00:19.7]} 28. Qh7 {[%clk 0:01:49.1]} 28... a6 {[%clk 0:00:10.6]} 29. Qg8+
{[%clk 0:01:45.2]} 29... Ka7 {[%clk 0:00:11.8]} 30. Qd8 {[%clk 0:01:46]} 30...
Qc1 {[%clk 0:00:10.1]} 31. e4 {[%clk 0:01:43.4]} 31... Qc4 {[%clk 0:00:09.2]}
32. Qb6+ {[%clk 0:01:41.1]} 32... Ka8 {[%clk 0:00:09.3]} 33. Re3 {[%clk
0:01:42.5]} 33... dxe4 {[%clk 0:00:03.7]} 34. fxe4 {[%clk 0:01:43.8]} 34... Rd7
{[%clk 0:00:04.4]} 35. Rd3 {[%clk 0:01:22.6]} 35... Rxe4 {[%clk 0:00:04.5]} 36.
d5 {[%clk 0:01:23.5]} 36... Rd4 {[%clk 0:00:03]} 37. Rxd4 {[%clk 0:01:21.3]} 1-0